bitfinex-derivatives/quotes_SOLF0:USTF0_20251208
["timestamp","ask_amount","ask_price","bid_price","bid_amount"]
[1765172529718,3.12,135.22,135.19,66.36]
[1765172529919,3.12,135.21,135.18,2.42669023]
[1765172530222,3.12,135.22,135.19,3.1]
[1765172530422,3.12,135.22,135.19,3.14727992]
[1765172530423,3.16715608,135.22,135.19,3.14727992]
[1765172530624,0.04715608,135.22,135.19,3.14727992]
[1765172531130,3.16715608,135.22,135.19,3.14727992]
[1765172532031,3.16715608,135.22,135.19,0.04727992]
[1765172533626,9.82325608,135.22,135.19,0.04727992]
[1765172533831,3.12,135.21,135.19,0.04727992]
[1765172534428,12.20349023,135.21,135.19,0.04727992]
[1765172534632,3.12,135.2,135.19,0.04727992]
[1765172559462,8.77580027,135.2,135.19,0.04727992]
[1765172561050,6.6575,135.19,135.15,2.42669023]
[1765172561256,3.2,135.18,135.15,2.42669023]
[1765172561462,3.2,135.18,135.14,66.45]
[1765172562153,3.2,135.16,135.15,0.04837718]
[1765172564762,0.04762809,135.17,135.15,0.04837718]
[1765172564763,0.04762809,135.17,135.16,3.23]
[1765172568063,0.04762809,135.17,135.16,5.65669023]
[1765172578669,0.04762809,135.17,135.16,3.23]
[1765172582067,3.21,135.16,135.15,0.04837718]
[1765172582273,3.25762809,135.17,135.15,3.22837718]
[1765172582672,9.91602809,135.17,135.15,0.04837718]
[1765172582964,3.21,135.16,135.15,0.04837718]
[1765172584178,8.88263538,135.16,135.15,0.04837718]
[1765172594786,5.67263538,135.16,135.15,3.38837718]
[1765172594984,0.04762809,135.17,135.16,9.9989]
[1765172599989,0.04762809,135.17,135.15,66.44837718]
[1765172600293,0.04762809,135.17,135.16,3.16]
[1765172601982,3.16762809,135.17,135.15,66.44837718]
[1765172604494,3.16762809,135.17,135.15,63.28837718]
[1765172604795,3.16762809,135.17,135.15,66.44837718]
[1765172605798,0.04762809,135.17,135.15,66.44837718]
[1765172606497,0.04762809,135.17,135.16,3.16]
[1765172606799,3.16762809,135.17,135.15,66.44837718]
[1765172609395,3.16762809,135.17,135.15,63.28837718]
[1765172609597,3.12,135.16,135.15,63.28837718]
[1765172609898,3.12,135.16,135.15,0.04837718]
[1765172610195,8.70660082,135.16,135.15,0.04837718]
[1765172619816,5.58660082,135.16,135.15,3.20837718]
[1765172620512,3.16762809,135.17,135.15,0.04837718]
[1765172621618,3.16762809,135.17,135.15,3.20837718]
[1765172622909,3.12,135.15,135.11,3.16]
[1765172624120,3.12,135.15,135.12,0.0469631]
[1765172624616,3.12,135.14,135.12,0.0469631]
[1765172627322,9.7799,135.14,135.12,0.0469631]
[1765172627620,3.12,135.13,135.12,0.0469631]
[1765172629621,3.12,135.13,135.09,6.6619]
[1765172629622,3.05,135.11,135.08,3.08]
[1765172630724,3.09973818,135.11,135.08,3.13349627]
[1765172636030,3.09973818,135.11,135.08,9.79619627]
[1765172636230,3.09973818,135.11,135.09,3.08]
[1765172636631,0.04973818,135.11,135.09,3.08]
[1765172637730,0.04973818,135.11,135.1,6.87100584]
[1765172638726,0.04973818,135.11,135.1,5.50770672]
[1765172647436,9.7187,135.17,135.11,3.31]
[1765172647741,8.63170464,135.16,135.14,3.31]
[1765172648042,3.06,135.16,135.14,3.31]
[1765172648443,3.11214799,135.16,135.14,3.35984772]
[1765172649236,3.11214799,135.16,135.14,0.04984772]
[1765172649237,3.06,135.15,135.14,0.04984772]
[1765172650741,6.71104799,135.16,135.14,3.35984772]
[1765172650931,3.11214799,135.16,135.14,3.35984772]
[1765172652845,0.05214799,135.16,135.15,5.73770672]
[1765172654043,3.11214799,135.16,135.15,2.42770672]
[1765172655149,3.11214799,135.16,135.15,5.73770672]
[1765172655639,0.05214799,135.16,135.15,5.73770672]
[1765172659052,3.17,135.19,135.17,3.36]
[1765172659352,3.17,135.19,135.17,5.78770672]
[1765172660052,3.22695399,135.19,135.17,5.84273368]
[1765172663449,3.17,135.17,135.12,3.36]
[1765172664048,3.17,135.15,135.12,3.36]
[1765172664553,3.22538703,135.15,135.12,3.41117777]
[1765172665655,3.22538703,135.15,135.12,10.07187777]
[1765172666946,0.05538703,135.15,135.14,3.36]
[1765172670154,3.17,135.2,135.16,3.36]
[1765172670343,3.17,135.2,135.17,3.36]
[1765172671251,3.21943687,135.2,135.17,0.05622297]
[1765172675250,3.21943687,135.2,135.17,10.07442297]
[1765172675652,3.21943687,135.2,135.17,6.71442297]
[1765172678154,3.21943687,135.2,135.17,0.05622297]
[1765172686473,3.17,135.18,135.17,0.05622297]
[1765172686971,3.17,135.19,135.17,3.41622297]
[1765172687971,3.17,135.19,135.17,0.05622297]
[1765172694372,8.83686169,135.18,135.17,0.05622297]
[1765172695772,3.27,135.17,135.12,2.42770672]
[1765172695977,3.27,135.15,135.12,5.77770672]
[1765172696781,3.32309382,135.15,135.12,5.82807434]
[1765172698583,0.05309382,135.15,135.14,5.52770672]
[1765172698778,0.05309382,135.15,135.14,3.1]
[1765172700276,0.00309382,135.15,135.14,3.1]
[1765172700483,3.13,135.2,135.17,3.1]
[1765172701483,3.1775281,135.2,135.18,3.1]
[1765172703075,3.1775281,135.2,135.19,3.1]
[1765172703076,0.0475281,135.2,135.19,3.1]
[1765172703278,3.1775281,135.2,135.18,6.89182983]
[1765172703477,3.1775281,135.2,135.18,3.1]
[1765172703680,0.0475281,135.2,135.18,3.1]
[1765172704068,3.1775281,135.2,135.18,3.1]
[1765172704582,3.1775281,135.2,135.17,0.04755751]
[1765172705678,3.1775281,135.2,135.17,3.14755751]
[1765172710488,3.1775281,135.2,135.17,0.04755751]
[1765172710687,3.13,135.18,135.17,0.04755751]
[1765172713375,8.69884642,135.18,135.17,0.04755751]
[1765172713579,3.13,135.18,135.17,0.04755751]
[1765172733014,3.13,135.18,135.11,3.79182983]
[1765172733215,3.26,135.16,135.11,3.79182983]
[1765172733421,3.26,135.16,135.1,3.31]
[1765172733422,3.26,135.14,135.1,3.31]
[1765172734021,3.31424254,135.13,135.11,3.36080999]
[1765172734220,3.31538089,135.13,135.11,3.36080999]
[1765172734523,3.31538089,135.13,135.11,10.02170999]
[1765172736221,3.31538089,135.13,135.11,6.71170999]
[1765172738519,3.31538089,135.13,135.11,0.05080999]
[1765172747226,3.26,135.12,135.11,0.05080999]
[1765172748622,3.21,135.1,135.05,7.14182983]
[1765172748924,3.21,135.1,135.06,3.35]
[1765172749523,9.872,135.1,135.07,0.05143045]
[1765172749716,3.26517816,135.09,135.07,0.05143045]
[1765172753731,0.05517816,135.09,135.07,3.40143045]
[1765172753936,3.26517816,135.09,135.07,3.40143045]
[1765172760740,3.26517816,135.09,135.08,5.77861838]
[1765172760741,0.05517816,135.09,135.08,5.77861838]
[1765172762141,3.21,135.14,135.09,3.35]
[1765172762332,3.21,135.16,135.14,3.35]
[1765172762536,3.21,135.16,135.15,2.42861838]
[1765172762941,3.21,135.17,135.15,5.77861838]
[1765172763144,3.26593514,135.17,135.15,5.83224359]
[1765172763538,3.21,135.16,135.15,0.05362521]
[1765172767141,3.17593514,135.17,135.15,3.31362521]
[1765172767341,3.17593514,135.17,135.15,5.74224359]
[1765172770747,0.05593514,135.17,135.16,3.26]
[1765172777656,3.12,135.21,135.17,3.26]
[1765172777863,3.12,135.21,135.19,3.26]
[1765172778548,3.12,135.21,135.18,2.42861838]
[1765172778549,3.12,135.21,135.18,5.76861838]
[1765172778748,3.17275727,135.21,135.18,5.82565054]
[1765172780161,3.17275727,135.21,135.19,3.34]
[1765172781262,0.05275727,135.21,135.19,3.34]
[1765172781862,3.22275727,135.21,135.19,3.34]
[1765172783355,0.05275727,135.21,135.19,3.34]
[1765172785060,0.05275727,135.21,135.19,9.9973]
[1765172785262,0.05275727,135.21,135.2,3.34]
[1765172790665,0.05275727,135.21,135.2,5.76861838]
[1765172791262,3.17,135.25,135.2,5.76861838]
[1765172791263,9.8245,135.25,135.21,3.34]
[1765172791468,5.59861838,135.26,135.23,3.34]
[1765172791469,3.17,135.26,135.23,3.34]
[1765172792277,3.17,135.26,135.23,3.39158523]
[1765172792278,3.22437273,135.26,135.23,3.39158523]
[1765172792573,0.05437273,135.26,135.23,3.39158523]
[1765172792778,0.05437273,135.26,135.24,3.34]
[1765172793071,2.42861838,135.25,135.23,0.05158523]
[1765172793280,3.17,135.24,135.23,0.05158523]
[1765172798885,5.59861838,135.24,135.23,0.05158523]
[1765172802589,3.17,135.24,135.23,0.05158523]
[1765172806690,0.05437273,135.26,135.23,0.05158523]
[1765172806691,3.22437273,135.26,135.23,3.39158523]
[1765172806893,0.05437273,135.26,135.25,5.76861838]
[1765172807083,3.22437273,135.26,135.25,2.42861838]
[1765172813086,3.13,135.3,135.26,3.21]
[1765172813289,3.13,135.3,135.28,5.63861838]
[1765172813889,3.13,135.3,135.28,2.42861838]
[1765172814093,3.1797173,135.3,135.28,2.47623792]
[1765172814493,9.8318173,135.3,135.28,0.04761954]
[1765172814690,3.13,135.29,135.28,0.04761954]
[1765172820813,3.13,135.27,135.22,6.9954634]
[1765172821112,3.13,135.27,135.22,3.21]
[1765172821914,3.13,135.25,135.23,0.05568674]
[1765172823305,9.7847,135.25,135.23,0.05568674]
[1765172823516,3.13,135.24,135.23,0.05568674]
[1765172838220,8.70722189,135.24,135.23,0.05568674]
[1765172840217,5.57722189,135.24,135.23,3.37568674]
[1765172840534,3.37589407,135.26,135.23,0.05568674]
[1765172840717,3.32,135.24,135.23,0.05568674]
[1765172845017,8.89581815,135.24,135.23,0.05568674]
[1765172846420,3.32,135.24,135.23,0.05568674]
[1765172850019,8.89538663,135.24,135.23,0.05568674]
[1765172858735,3.32,135.24,135.23,0.05568674]
[1765172860342,8.89523424,135.24,135.23,0.05568674]
[1765172860541,3.32,135.24,135.23,0.05568674]
[1765172860743,8.89514519,135.24,135.23,0.05568674]
[1765172861035,3.32,135.22,135.16,70.2654634]
[1765172861240,3.32,135.2,135.17,3.32]
[1765172861438,3.32,135.2,135.16,63.16]
[1765172861439,3.32,135.19,135.16,63.16]
[1765172862051,3.36816089,135.19,135.16,63.21052631]
[1765172862841,10.02576089,135.19,135.16,0.05052631]
[1765172863042,3.32,135.17,135.16,0.05052631]
[1765172881950,0.04816089,135.19,135.16,3.28052631]
[1765172882141,0.04816089,135.19,135.18,3.23]
[1765172882538,3.18,135.23,135.19,3.23]
[1765172882744,6.6553,135.24,135.17,2.42699203]
[1765172882745,3.18,135.24,135.22,3.23]
[1765172882950,3.18,135.24,135.21,5.65699203]
[1765172883654,3.23121673,135.24,135.21,5.71322108]
[1765172883853,3.23121673,135.24,135.21,2.48322108]
[1765172884249,3.23121673,135.24,135.21,5.71322108]
[1765172885155,0.05121673,135.24,135.22,3.23]
[1765172885860,3.23121673,135.24,135.22,3.23]
[1765172887151,0.05121673,135.24,135.22,3.23]
[1765172889457,3.23121673,135.24,135.22,3.23]
[1765172889855,0.05121673,135.24,135.22,3.23]
[1765172890057,0.05121673,135.24,135.23,5.65699203]
[1765172890561,3.23121673,135.24,135.23,2.42699203]
[1765172891149,3.23121673,135.24,135.21,5.71322108]
[1765172892959,3.23121673,135.24,135.21,2.48322108]
[1765172893655,3.23121673,135.24,135.21,5.71322108]
[1765172895069,3.23121673,135.24,135.21,2.48322108]
[1765172895371,3.23121673,135.24,135.21,0.05622905]
[1765172895767,3.23121673,135.24,135.21,3.28622905]
[1765172903481,3.23121673,135.24,135.21,0.05622905]
[1765172904281,3.23121673,135.24,135.21,3.31622905]
[1765172906480,9.88621673,135.24,135.21,3.31622905]
[1765172906787,3.33,135.23,135.21,3.31622905]
[1765172908283,3.33,135.23,135.21,0.05622905]
[1765172910080,3.33,135.23,135.21,3.31622905]
[1765172910679,9.9855,135.23,135.21,0.05622905]
[1765172910877,3.33,135.22,135.21,0.05622905]
[1765172913083,3.33,135.21,135.18,3.26]
[1765172913278,3.33,135.21,135.16,66.42]
[1765172913480,2.42699203,135.22,135.16,66.42]
[1765172913481,3.33,135.19,135.16,63.16]
[1765172913675,3.33,135.17,135.14,3.26]
[1765172914074,3.38332571,135.17,135.14,3.31391188]
[1765172914276,3.38332571,135.17,135.14,0.05391188]
[1765172915183,5.75699203,135.16,135.14,0.05391188]
[1765172915370,3.33,135.15,135.14,0.05391188]
[1765172916785,3.33,135.16,135.14,3.31391188]
[1765172918990,3.33,135.16,135.14,0.05391188]
[1765172921893,3.33,135.16,135.14,3.31391188]
[1765172922394,0.05332571,135.17,135.15,3.26]
[1765172922785,3.38332571,135.17,135.15,3.26]
[1765172923189,0.05332571,135.17,135.15,3.26]
[1765172924486,0.05332571,135.17,135.15,9.9193]
[1765172924686,0.05332571,135.17,135.16,3.26]
[1765172924998,0.05332571,135.17,135.16,5.68699203]
[1765172926894,3.33,135.22,135.18,3.26]
[1765172927090,6.88641621,135.26,135.21,3.26]
[1765172927091,3.33,135.23,135.21,3.26]
[1765172927289,3.33,135.24,135.22,2.42699203]
[1765172927891,3.38327025,135.24,135.22,2.47633969]
[1765172928097,3.38327025,135.24,135.22,0.04934766]
[1765172934112,3.38327025,135.24,135.22,5.66633969]
[1765172934312,0.05327025,135.24,135.23,3.19]
[1765172942012,3.25,135.27,135.23,3.19]
[1765172942316,9.9027,135.29,135.23,3.19]
[1765172942510,3.25,135.27,135.23,3.19]
[1765172943215,3.29915866,135.26,135.24,0.05011513]
[1765172944416,3.29915866,135.26,135.24,3.33011513]
[1765172945610,3.29915866,135.26,135.24,0.05011513]
[1765172947227,0.04915866,135.26,135.24,3.33011513]
[1765172949129,3.25,135.33,135.25,3.28]
[1765172949329,10.6739154,135.34,135.27,3.28]
[1765172949330,3.25,135.31,135.27,3.28]
[1765172950131,0.05553112,135.3,135.28,3.3311918]
[1765172951223,3.30553112,135.3,135.28,3.3311918]
[1765172954334,0.05553112,135.3,135.28,3.3311918]
[1765172955435,0.05553112,135.3,135.28,9.9838918]
[1765172955631,0.05553112,135.3,135.28,6.7038918]
[1765172955837,0.05553112,135.3,135.29,3.28]
[1765172957431,0.05553112,135.3,135.28,0.0511918]
[1765172957635,3.30553112,135.3,135.28,3.3311918]
[1765172957939,3.30553112,135.3,135.28,0.0511918]
[1765172958236,3.30553112,135.3,135.28,3.3611918]
[1765172958834,3.30553112,135.3,135.28,0.0511918]
[1765172961642,3.30553112,135.3,135.28,3.3611918]
[1765172961832,0.05553112,135.3,135.28,3.3611918]
[1765172962431,0.05553112,135.3,135.28,10.0139918]
[1765172962740,0.05553112,135.3,135.29,3.31]
[1765172962931,3.42553112,135.3,135.28,0.0511918]
[1765172965227,3.42553112,135.3,135.28,3.3611918]
[1765172965639,3.42553112,135.3,135.28,0.0511918]
[1765172972142,10.07753112,135.3,135.28,0.0511918]
[1765172972642,3.37,135.29,135.28,0.0511918]
[1765172974039,3.37,135.27,135.24,66.43]
[1765172974942,3.37,135.29,135.25,3.31]
[1765172975243,3.41966777,135.28,135.26,3.36435311]
[1765172976643,3.41966777,135.28,135.26,0.05435311]
[1765172976830,0.04966777,135.28,135.26,3.36435311]
[1765172978243,0.04966777,135.28,135.26,0.05435311]
[1765172978244,3.41966777,135.28,135.26,0.05435311]
[1765172978839,10.07276777,135.28,135.26,0.05435311]
[1765172979344,3.37,135.27,135.26,0.05435311]
[1765172981445,3.41966777,135.28,135.26,3.36435311]
[1765172981744,3.41966777,135.28,135.26,0.05435311]
[1765172983540,0.04966777,135.28,135.26,3.36435311]
[1765172984144,3.41966777,135.28,135.26,3.36435311]
[1765172985151,3.41966777,135.28,135.26,0.05435311]
[1765172986647,3.41966777,135.28,135.26,3.36435311]
[1765172987352,0.04966777,135.28,135.26,3.36435311]
[1765172988753,0.04966777,135.28,135.27,3.2]
[1765172988941,0.04966777,135.28,135.26,3.8418523]
[1765172989142,0.04966777,135.28,135.26,7.0418523]
[1765172992449,3.36966777,135.28,135.26,0.05435311]
[1765172993550,3.32,135.27,135.26,0.05435311]
[1765172999057,3.37,135.26,135.22,3.34]
[1765172999954,3.37,135.26,135.23,3.3928982]
[1765173000158,3.4203449,135.26,135.23,3.3928982]
[1765173000460,3.4203449,135.26,135.23,7.18039739]
[1765173000649,0.0503449,135.26,135.24,3.34]
[1765173001751,3.4203449,135.26,135.23,0.0528982]
[1765173001954,3.4203449,135.26,135.23,3.3928982]
[1765173002765,3.4203449,135.26,135.24,3.34]
[1765173007459,6.88641621,135.3,135.25,5.76384698]
[1765173007663,3.37,135.31,135.28,3.34]
[1765173007855,5.56469494,135.3,135.28,3.34]
[1765173008061,3.37,135.31,135.29,5.76384698]
[1765173008564,3.42404361,135.31,135.29,5.813133]
[1765173009864,0.05404361,135.31,135.29,5.813133]
[1765173011164,3.42404361,135.31,135.29,2.473133]
[1765173013562,3.37,135.3,135.29,0.04928602]
[1765173013869,3.37,135.29,135.24,3.34]
[1765173014167,3.37,135.27,135.24,3.34]
[1765173014364,3.37,135.26,135.23,2.42384698]
[1765173014567,3.37,135.26,135.23,5.76384698]
[1765173014871,3.4212139,135.26,135.23,5.81199142]
[1765173015462,3.4212139,135.26,135.24,3.34]
[1765173015660,0.0512139,135.26,135.24,3.34]
[1765173015861,3.4212139,135.26,135.24,3.34]
[1765173016554,0.0512139,135.26,135.24,3.34]
[1765173016756,0.0512139,135.26,135.25,5.76384698]
[1765173018164,0.0512139,135.26,135.25,2.42384698]
[1765173018468,0.0512139,135.26,135.24,3.08]
[1765173019466,0.0512139,135.26,135.25,5.50384698]
[1765173020970,0.0012139,135.26,135.25,68.64384698]
[1765173021167,8.86362915,135.31,135.27,3.08]
[1765173021366,8.86362915,135.31,135.28,3.08]
[1765173021367,5.54362915,135.3,135.28,3.08]
[1765173021670,3.32,135.31,135.28,3.08]
[1765173021970,5.54299751,135.3,135.28,3.08]
[1765173022270,3.3770161,135.31,135.28,3.13374071]
[1765173023465,3.3770161,135.31,135.28,0.05374071]
[1765173024370,5.80086308,135.31,135.28,3.13374071]
[1765173024569,3.32,135.3,135.28,3.13374071]
[1765173025472,0.0570161,135.31,135.29,5.50384698]
[1765173025775,3.3770161,135.31,135.29,5.50384698]
[1765173028375,3.3770161,135.31,135.28,0.05374071]
[1765173028569,3.3770161,135.31,135.28,3.13374071]
[1765173033075,3.3770161,135.31,135.29,3.08]
[1765173033271,0.0570161,135.31,135.29,3.08]
[1765173034171,0.0570161,135.31,135.3,3.08]
[1765173034371,3.3770161,135.31,135.28,3.13374071]
[1765173036079,3.3770161,135.31,135.28,9.78654071]
[1765173037172,3.3770161,135.31,135.29,3.08]
[1765173037685,0.0570161,135.31,135.29,3.08]
[1765173038988,0.0570161,135.31,135.29,12.15624698]
[1765173039286,0.0570161,135.31,135.3,3.08]
[1765173043887,3.3770161,135.31,135.29,5.50384698]
[1765173044291,3.3770161,135.31,135.28,3.13374071]
[1765173044796,3.3770161,135.31,135.28,0.05374071]
[1765173045793,3.3770161,135.31,135.28,3.13374071]
[1765173048089,0.0570161,135.31,135.28,3.13374071]
[1765173048295,3.3970161,135.31,135.28,3.13374071]
[1765173049992,10.0486161,135.31,135.28,0.05374071]
[1765173050194,3.34,135.3,135.28,0.05374071]
[1765173050995,9.9921,135.3,135.28,0.05374071]
[1765173051189,3.34,135.29,135.28,0.05374071]
[1765173051693,0.0570161,135.31,135.28,3.25374071]
[1765173051899,0.0570161,135.31,135.3,3.2]
[1765173052389,5.59848454,135.31,135.3,3.2]
[1765173054294,0.0570161,135.31,135.3,3.2]
[1765173054502,9.9893,135.36,135.31,3.2]
[1765173054694,8.88014785,135.35,135.33,3.2]
[1765173054889,5.54014785,135.34,135.33,3.2]
[1765173055287,9.9893,135.36,135.33,3.2]
[1765173055490,5.53060046,135.35,135.33,3.24783045]
[1765173055691,10.03972599,135.36,135.33,3.24783045]
[1765173055893,8.87034516,135.35,135.33,3.24783045]
[1765173056095,3.34,135.35,135.33,3.24783045]
[1765173056496,3.34,135.35,135.33,0.04783045]
[1765173057898,3.34,135.34,135.33,0.04783045]
[1765173061400,8.86972076,135.34,135.33,0.04783045]
[1765173062102,3.13,135.35,135.33,0.04783045]
[1765173062308,3.13,135.35,135.33,3.25783045]
[1765173062607,3.13,135.35,135.33,0.04783045]
[1765173062811,3.13,135.34,135.33,0.04783045]
[1765173063196,8.65861552,135.34,135.33,0.04783045]
[1765173065205,3.13,135.32,135.3,63.12]
[1765173065408,3.13,135.32,135.28,3.21]
[1765173066207,0.05259308,135.31,135.29,3.26518598]
[1765173068110,3.18259308,135.31,135.29,3.26518598]
[1765173068801,3.18259308,135.31,135.29,0.05518598]
[1765173069315,3.18259308,135.31,135.29,3.26518598]
[1765173069511,0.05259308,135.31,135.29,3.26518598]
[1765173070215,0.05259308,135.31,135.29,9.91738598]
[1765173070511,0.05259308,135.31,135.3,3.21]
[1765173071504,0.05259308,135.31,135.3,66.33]
[1765173072507,3.13,135.36,135.32,3.21]
[1765173073506,3.13,135.36,135.33,0.04923138]
[1765173073702,0.04899113,135.35,135.33,3.25923138]
[1765173079311,3.19899113,135.35,135.33,3.35923138]
[1765173079517,3.19899113,135.35,135.33,0.04923138]
[1765173080109,3.19899113,135.35,135.33,3.35923138]
[1765173080305,0.04899113,135.35,135.33,3.35923138]
[1765173080509,3.19899113,135.35,135.33,3.35923138]
[1765173082118,3.19899113,135.35,135.33,0.04923138]
[1765173083124,9.84869113,135.35,135.33,0.04923138]
[1765173083728,3.15,135.34,135.33,0.04923138]
[1765173101546,8.6757716,135.34,135.3,63.12]
[1765173101751,3.15,135.33,135.3,63.12]
[1765173102155,3.15,135.31,135.27,6.6531]
[1765173102453,3.15,135.31,135.25,9.964]
[1765173102753,3.19936421,135.29,135.27,0.05378806]
[1765173103050,3.19936421,135.29,135.27,3.36378806]
[1765173103249,3.19936421,135.29,135.27,0.05378806]
[1765173103549,0.04936421,135.29,135.27,3.36378806]
[1765173105456,0.04936421,135.29,135.27,10.01698806]
[1765173105652,0.04936421,135.29,135.28,3.31]
[1765173106750,0.04936421,135.29,135.27,3.36378806]
[1765173106751,3.19936421,135.29,135.27,3.36378806]
[1765173106952,3.19936421,135.29,135.27,0.05378806]
[1765173107555,3.19936421,135.29,135.27,3.36378806]
[1765173109957,0.04936421,135.29,135.27,3.36378806]
[1765173110554,3.11936421,135.29,135.27,3.36378806]
[1765173111163,0.04936421,135.29,135.27,3.36378806]
[1765173112668,0.04936421,135.29,135.28,7.09280172]
[1765173116362,0.04936421,135.29,135.28,70.21280172]
[1765173117175,3.11936421,135.29,135.28,63.12]
[1765173119976,0.04936421,135.29,135.28,66.43]
[1765173122071,3.29936421,135.29,135.28,63.12]
[1765173122877,0.04936421,135.29,135.28,66.48]
[1765173123273,3.25,135.33,135.29,3.36]
[1765173123473,3.25,135.36,135.31,3.36]
[1765173123677,116.4123049,135.39,135.31,3.36]
[1765173123678,3.25,135.34,135.31,3.36]
[1765173124578,3.29993802,135.34,135.31,3.40773052]
[1765173124781,3.29993802,135.34,135.32,2.42055463]
[1765173125380,3.29993802,135.34,135.32,5.78055463]
[1765173126380,3.29993802,135.34,135.32,3.36]
[1765173127480,3.29993802,135.34,135.31,2.46828515]
[1765173128184,3.25,135.32,135.31,0.04773052]
[1765173128378,5.67055463,135.32,135.31,0.04773052]
[1765173129578,3.25,135.31,135.27,3.36]
[1765173130575,0.04867272,135.3,135.28,0.05248434]
[1765173130877,3.25,135.29,135.28,0.05248434]
[1765173133475,3.29867272,135.3,135.28,0.05248434]
[1765173133780,3.29867272,135.3,135.28,3.41248434]
[1765173134082,3.29867272,135.3,135.28,0.05248434]
[1765173139586,3.35,135.29,135.28,0.05248434]
[1765173153795,6.70067272,135.3,135.28,0.05248434]
[1765173153796,0.04867272,135.3,135.28,3.15248434]
[1765173153987,3.39867272,135.3,135.28,3.15248434]
[1765173154789,3.39867272,135.3,135.28,0.05248434]
[1765173155195,3.39867272,135.3,135.28,3.15248434]
[1765173156900,3.35,135.33,135.3,3.1]
[1765173157101,3.35,135.33,135.31,5.52055463]
[1765173157303,3.35,135.33,135.31,2.42055463]
[1765173157501,3.35,135.31,135.29,5.52055463]
[1765173158000,3.40058147,135.31,135.29,5.52055463]
[1765173160102,0.05058147,135.31,135.3,3.1]
[1765173161607,3.40058147,135.31,135.28,3.15248434]
[1765173162400,3.40058147,135.31,135.28,5.57303897]
[1765173162598,3.35,135.3,135.28,5.57303897]
[1765173162799,3.35,135.3,135.28,2.47303897]
[1765173163617,3.35,135.29,135.28,2.47303897]
[1765173167218,3.40058147,135.31,135.29,3.1]
[1765173170708,3.40058147,135.31,135.28,5.79303897]
[1765173172118,0.05058147,135.31,135.29,3.32]
[1765173172715,3.34058147,135.31,135.29,3.32]
[1765173173108,3.34058147,135.31,135.28,2.47303897]
[1765173173309,3.29,135.29,135.28,0.05248434]
[1765173174103,3.29,135.28,135.24,63.12]
[1765173174307,3.29,135.24,135.2,3.32]
[1765173174514,3.29,135.24,135.19,5.74055463]
[1765173174719,3.29,135.22,135.18,66.44]
[1765173174907,3.29,135.22,135.18,63.12]
[1765173175109,3.29,135.2,135.16,3.32]
[1765173175310,3.29,135.2,135.19,0.05278339]
[1765173176322,3.29,135.2,135.13,65.56055463]
[1765173176614,103.5409,135.22,135.13,65.56055463]
[1765173176615,3.29,135.18,135.14,3.32]
[1765173177224,0.05103208,135.17,135.15,0.04983317]
[1765173177421,0.05103208,135.17,135.15,3.36983317]
[1765173179219,0.05103208,135.17,135.15,5.7903878]
[1765173179622,0.05103208,135.17,135.16,3.1]
[1765173183513,0.05103208,135.17,135.15,0.04983317]
[1765173183514,3.41103208,135.17,135.15,0.04983317]
[1765173183713,3.41103208,135.17,135.15,3.14983317]
[1765173183913,0.05103208,135.17,135.15,3.14983317]
[1765173184622,3.36,135.16,135.15,0.04983317]
[1765173188122,3.36,135.16,135.11,3.1]
[1765173188123,10.0193,135.16,135.11,3.1]
[1765173188425,3.36,135.15,135.11,3.1]
[1765173189228,3.36,135.15,135.12,3.15473572]
[1765173189418,3.40937618,135.15,135.12,3.15473572]
[1765173195727,0.04937618,135.15,135.12,6.94803829]
[1765173196029,0.04937618,135.15,135.13,3.1]
[1765173200640,3.27937618,135.15,135.13,3.1]
[1765173201035,0.04937618,135.15,135.13,3.1]
[1765173201434,3.27937618,135.15,135.13,3.1]
[1765173202131,3.27937618,135.15,135.12,3.84803829]
[1765173202436,3.27937618,135.15,135.12,3.12473572]
[1765173205233,3.23,135.14,135.12,0.05473572]
[1765173205428,3.23,135.14,135.12,3.12473572]
[1765173205833,9.8901,135.14,135.12,0.05473572]
[1765173206033,3.23,135.13,135.12,0.05473572]
[1765173213241,3.23,135.12,135.09,66.25]
[1765173214230,3.23,135.12,135.09,66.2967908]